[Event "Early-Titled-Tuesday-Blitz-May-14-2024"]
[Site "Chess.com"]
[Date "2024.05.14"]
[Round "9"]
[White "emeli_chess"]
[Black "Chernov_Alexander_A"]
[Result "1/2-1/2"]
[WhiteElo "2421"]
[BlackElo "2276"]
[TimeControl "180+1"]
[EndTime "9:47:15 PDT"]
[Termination "Game drawn by repetition"]

1. d4 {[%clk 0:03:00.9]} 1... Nf6 {[%clk 0:02:58.9]} 2. c4 {[%clk 0:03:00.4]}
2... e6 {[%clk 0:02:58.4]} 3. Nc3 {[%clk 0:03:00.5]} 3... Bb4 {[%clk 0:02:57.4]}
4. Qc2 {[%clk 0:03:00.6]} 4... c5 {[%clk 0:02:56.2]} 5. dxc5 {[%clk 0:03:00.4]}
5... Na6 {[%clk 0:02:56.1]} 6. a3 {[%clk 0:03:00.7]} 6... Bxc5 {[%clk
0:02:55.8]} 7. Nf3 {[%clk 0:03:00.4]} 7... b6 {[%clk 0:02:54.9]} 8. e3 {[%clk
0:02:59.6]} 8... Bb7 {[%clk 0:02:55]} 9. b3 {[%clk 0:02:56.3]} 9... O-O {[%clk
0:02:53.9]} 10. Bb2 {[%clk 0:02:55.4]} 10... Nc7 {[%clk 0:02:48.7]} 11. Be2
{[%clk 0:02:48]} 11... d5 {[%clk 0:02:48.2]} 12. O-O {[%clk 0:02:39.1]} 12...
dxc4 {[%clk 0:02:37.6]} 13. bxc4 {[%clk 0:02:35.2]} 13... Qe7 {[%clk 0:02:29.3]}
14. Rfd1 {[%clk 0:02:29.5]} 14... Rfd8 {[%clk 0:02:26.7]} 15. a4 {[%clk
0:02:15.3]} 15... Rxd1+ {[%clk 0:02:10.2]} 16. Rxd1 {[%clk 0:02:14.3]} 16... Rd8
{[%clk 0:02:09.7]} 17. Nb5 {[%clk 0:02:10.6]} 17... Rxd1+ {[%clk 0:01:34.1]} 18.
Qxd1 {[%clk 0:02:09.7]} 18... Nce8 {[%clk 0:01:17.2]} 19. h3 {[%clk 0:01:56.6]}
19... a6 {[%clk 0:01:16.8]} 20. Nbd4 {[%clk 0:01:55.9]} 20... Ne4 {[%clk
0:01:14.4]} 21. Nb3 {[%clk 0:01:49.9]} 21... Bb4 {[%clk 0:01:12.3]} 22. Qd4
{[%clk 0:01:44.7]} 22... Qd6 {[%clk 0:00:52.6]} 23. Qxd6 {[%clk 0:01:29.2]}
23... N8xd6 {[%clk 0:00:48]} 24. Bd4 {[%clk 0:01:29.3]} 24... Nc5 {[%clk
0:00:44.6]} 25. Nxc5 {[%clk 0:01:26.4]} 25... bxc5 {[%clk 0:00:44.5]} 26. Be5
{[%clk 0:01:18.7]} 26... Ne4 {[%clk 0:00:42.4]} 27. Bd1 {[%clk 0:01:02]} 27...
f6 {[%clk 0:00:40.2]} 28. Bb2 {[%clk 0:01:00.3]} 28... Kf7 {[%clk 0:00:38.3]}
29. Kf1 {[%clk 0:00:58.5]} 29... g5 {[%clk 0:00:34.7]} 30. Bc2 {[%clk
0:00:57.3]} 30... h5 {[%clk 0:00:29]} 31. Ke2 {[%clk 0:00:54.6]} 31... g4 {[%clk
0:00:26.1]} 32. hxg4 {[%clk 0:00:54.5]} 32... hxg4 {[%clk 0:00:26.2]} 33. Ne1
{[%clk 0:00:51.8]} 33... Nc3+ {[%clk 0:00:19]} 34. Bxc3 {[%clk 0:00:43.3]} 34...
Bxc3 {[%clk 0:00:18.8]} 35. g3 {[%clk 0:00:25.1]} 35... Bxe1 {[%clk 0:00:14.6]}
36. Kxe1 {[%clk 0:00:24.3]} 36... Ke7 {[%clk 0:00:13.6]} 37. Kd2 {[%clk
0:00:24.3]} 37... Kd6 {[%clk 0:00:12]} 38. Kc3 {[%clk 0:00:24.6]} 38... a5
{[%clk 0:00:11.6]} 39. Bd1 {[%clk 0:00:22.7]} 39... f5 {[%clk 0:00:11.4]} 40.
Bc2 {[%clk 0:00:20.8]} 40... Be4 {[%clk 0:00:09.5]} 41. Bd1 {[%clk 0:00:20.7]}
41... Ke5 {[%clk 0:00:09.2]} 42. Be2 {[%clk 0:00:18.8]} 42... Kd6 {[%clk
0:00:09.1]} 43. Bd1 {[%clk 0:00:18.4]} 43... Ke5 {[%clk 0:00:09.3]} 44. Be2
{[%clk 0:00:18.3]} 44... Kd6 {[%clk 0:00:09.4]} 45. Bd1 {[%clk 0:00:18.5]}
1/2-1/2

[Event "Early-Titled-Tuesday-Blitz-May-14-2024"]
[Site "Chess.com"]
[Date "2024.05.14"]
[Round "9"]
[White "Saxar85"]
[Black "baki83"]
[Result "0-1"]
[WhiteElo "2784"]
[BlackElo "2932"]
[TimeControl "180+1"]
[EndTime "9:47:18 PDT"]
[Termination "baki83 won on time"]

1. e4 {[%clk 0:02:54.4]} 1... c5 {[%clk 0:02:58.3]} 2. Nf3 {[%clk 0:02:54]} 2...
e6 {[%clk 0:02:58.1]} 3. Nc3 {[%clk 0:02:53.2]} 3... Nc6 {[%clk 0:02:55.9]} 4.
Bb5 {[%clk 0:02:52.5]} 4... Nd4 {[%clk 0:02:55.5]} 5. O-O {[%clk 0:02:47.1]}
5... Nxb5 {[%clk 0:02:54.7]} 6. Nxb5 {[%clk 0:02:46.9]} 6... a6 {[%clk
0:02:55.3]} 7. Nc3 {[%clk 0:02:46.8]} 7... d6 {[%clk 0:02:55.9]} 8. d4 {[%clk
0:02:46.1]} 8... cxd4 {[%clk 0:02:56.3]} 9. Qxd4 {[%clk 0:02:45.5]} 9... Nf6
{[%clk 0:02:56.7]} 10. Bg5 {[%clk 0:02:42.5]} 10... Be7 {[%clk 0:02:56.2]} 11.
Rad1 {[%clk 0:02:41.7]} 11... Qc7 {[%clk 0:02:56.3]} 12. Rfe1 {[%clk 0:02:36.9]}
12... O-O {[%clk 0:02:47.8]} 13. a4 {[%clk 0:02:31.4]} 13... b6 {[%clk
0:02:45.7]} 14. Nd2 {[%clk 0:02:23.2]} 14... h6 {[%clk 0:02:23.8]} 15. Bh4
{[%clk 0:02:18.8]} 15... g5 {[%clk 0:02:23.8]} 16. Bg3 {[%clk 0:02:16.3]} 16...
e5 {[%clk 0:02:24.1]} 17. Qc4 {[%clk 0:02:11.5]} 17... Qb7 {[%clk 0:02:19.3]}
18. Nf1 {[%clk 0:02:04.2]} 18... Be6 {[%clk 0:02:18.2]} 19. Qd3 {[%clk
0:02:03.6]} 19... Rfc8 {[%clk 0:02:05.3]} 20. Ne3 {[%clk 0:02:03.2]} 20... Rxc3
{[%clk 0:02:05.4]} 21. Qxc3 {[%clk 0:01:56.2]} 21... Nxe4 {[%clk 0:02:02.7]} 22.
Qd3 {[%clk 0:01:55.1]} 22... f5 {[%clk 0:01:50.4]} 23. c4 {[%clk 0:01:09]} 23...
Kg7 {[%clk 0:01:17.1]} 24. Nd5 {[%clk 0:00:58.4]} 24... Bxd5 {[%clk 0:01:16.7]}
25. cxd5 {[%clk 0:00:57.9]} 25... b5 {[%clk 0:00:54.6]} 26. f3 {[%clk
0:00:50.9]} 26... Qb6+ {[%clk 0:00:48.4]} 27. Kh1 {[%clk 0:00:48]} 27... Nxg3+
{[%clk 0:00:48.3]} 28. hxg3 {[%clk 0:00:47.8]} 28... Rf8 {[%clk 0:00:42.5]} 29.
axb5 {[%clk 0:00:46.8]} 29... axb5 {[%clk 0:00:42]} 30. Rc1 {[%clk 0:00:46.8]}
30... Qf2 {[%clk 0:00:34.9]} 31. Kh2 {[%clk 0:00:43.5]} 31... f4 {[%clk
0:00:34.5]} 32. g4 {[%clk 0:00:40.9]} 32... h5 {[%clk 0:00:35]} 33. gxh5 {[%clk
0:00:28.9]} 33... Rf6 {[%clk 0:00:33.4]} 34. Re2 {[%clk 0:00:20.9]} 34... Qh4+
{[%clk 0:00:13.6]} 35. Kg1 {[%clk 0:00:19.8]} 35... Qxh5 {[%clk 0:00:13.6]} 36.
Rc7 {[%clk 0:00:18.1]} 36... Kf7 {[%clk 0:00:13.7]} 37. Rec2 {[%clk 0:00:14.2]}
37... g4 {[%clk 0:00:11.8]} 38. fxg4 {[%clk 0:00:09.3]} 38... Qxg4 {[%clk
0:00:12.3]} 39. Qf3 {[%clk 0:00:09.2]} 39... Qh4 {[%clk 0:00:11.4]} 40. Rc1
{[%clk 0:00:03.8]} 40... Rh6 {[%clk 0:00:10.7]} 41. Kf1 {[%clk 0:00:03.7]} 41...
Rg6 {[%clk 0:00:09.8]} 42. Ke2 {[%clk 0:00:03.3]} 42... Rg3 {[%clk 0:00:09.4]}
0-1

[Event "Early-Titled-Tuesday-Blitz-May-14-2024"]
[Site "Chess.com"]
[Date "2024.05.14"]
[Round "9"]
[White "artin10862"]
[Black "karinachess1"]
[Result "1-0"]
[WhiteElo "2861"]
[BlackElo "2628"]
[TimeControl "180+1"]
[EndTime "9:47:20 PDT"]
[Termination "artin10862 won on time"]

1. d4 {[%clk 0:02:56.7]} 1... Nf6 {[%clk 0:02:59.3]} 2. c4 {[%clk 0:02:57.3]}
2... e6 {[%clk 0:02:59.7]} 3. Bf4 {[%clk 0:02:54.2]} 3... d5 {[%clk 0:02:59]} 4.
cxd5 {[%clk 0:02:53.6]} 4... exd5 {[%clk 0:02:57.1]} 5. e3 {[%clk 0:02:53.9]}
5... c6 {[%clk 0:02:54.7]} 6. Bd3 {[%clk 0:02:47.4]} 6... Bd6 {[%clk 0:02:54.8]}
7. Bxd6 {[%clk 0:02:47.2]} 7... Qxd6 {[%clk 0:02:54.7]} 8. Nc3 {[%clk
0:02:47.5]} 8... Nbd7 {[%clk 0:02:50.1]} 9. Qc2 {[%clk 0:02:43.9]} 9... Nb6
{[%clk 0:02:47.9]} 10. h3 {[%clk 0:02:41.8]} 10... Be6 {[%clk 0:02:42.7]} 11.
Nge2 {[%clk 0:02:34.8]} 11... h6 {[%clk 0:02:36.4]} 12. O-O {[%clk 0:02:23.3]}
12... O-O {[%clk 0:02:35.5]} 13. b3 {[%clk 0:02:20.3]} 13... Rfe8 {[%clk
0:02:25.4]} 14. f3 {[%clk 0:02:19.8]} 14... Nfd7 {[%clk 0:01:57.6]} 15. Qd2
{[%clk 0:02:16]} 15... c5 {[%clk 0:01:54.6]} 16. dxc5 {[%clk 0:02:15.8]} 16...
Nxc5 {[%clk 0:01:52.1]} 17. Nd4 {[%clk 0:02:13.9]} 17... Rad8 {[%clk 0:01:47]}
18. Rac1 {[%clk 0:02:11.6]} 18... a6 {[%clk 0:01:47.4]} 19. Nce2 {[%clk
0:02:10]} 19... Rc8 {[%clk 0:01:43.7]} 20. Bb1 {[%clk 0:02:09.5]} 20... Nbd7
{[%clk 0:01:35.3]} 21. g4 {[%clk 0:02:07.4]} 21... f6 {[%clk 0:01:12.9]} 22. b4
{[%clk 0:01:29]} 22... Na4 {[%clk 0:01:04.8]} 23. Rxc8 {[%clk 0:01:28.8]} 23...
Rxc8 {[%clk 0:01:05.7]} 24. Nxe6 {[%clk 0:01:29.4]} 24... Qxe6 {[%clk
0:01:04.6]} 25. Nf4 {[%clk 0:01:30.1]} 25... Qd6 {[%clk 0:00:51.7]} 26. Nxd5
{[%clk 0:01:25.9]} 26... Nc3 {[%clk 0:00:38.5]} 27. Nxf6+ {[%clk 0:01:21.8]}
27... Qxf6 {[%clk 0:00:35.1]} 28. Qxd7 {[%clk 0:01:22.7]} 28... Rd8 {[%clk
0:00:26.8]} 29. Qf5 {[%clk 0:01:17.1]} 29... Qh4 {[%clk 0:00:20.1]} 30. g5
{[%clk 0:01:01.3]} 30... Qg3+ {[%clk 0:00:18.9]} 31. Kh1 {[%clk 0:01:01.6]}
31... Rd2 {[%clk 0:00:12.8]} 32. Qh7+ {[%clk 0:00:42.8]} 32... Kf8 {[%clk
0:00:12.8]} 33. Qh8+ {[%clk 0:00:43.1]} 33... Kf7 {[%clk 0:00:12.5]} 34. g6+
{[%clk 0:00:43.5]} 34... Kf6 {[%clk 0:00:05.3]} 35. Qf8+ {[%clk 0:00:42.1]}
35... Kg5 {[%clk 0:00:02.5]} 36. Qf5+ {[%clk 0:00:33.9]} 36... Kh4 {[%clk
0:00:03]} 37. Qg4+ {[%clk 0:00:34.3]} 37... Qxg4 {[%clk 0:00:03.7]} 38. hxg4
{[%clk 0:00:33.2]} 38... Ne2 {[%clk 0:00:04.5]} 39. Rf2 {[%clk 0:00:30.5]} 39...
Ng3+ {[%clk 0:00:04.4]} 40. Kg2 {[%clk 0:00:30.7]} 40... Rd1 {[%clk 0:00:04.5]}
41. Bf5 {[%clk 0:00:28.9]} 41... Ra1 {[%clk 0:00:03.5]} 42. e4 {[%clk
0:00:28.7]} 42... Re1 {[%clk 0:00:02.9]} 43. Rc2 {[%clk 0:00:27.4]} 43... Ra1
{[%clk 0:00:01.2]} 44. Kf2 {[%clk 0:00:26.8]} 44... Nh1+ {[%clk 0:00:00.7]} 45.
Ke3 {[%clk 0:00:27.2]} 45... Re1+ {[%clk 0:00:00.5]} 46. Kf4 {[%clk 0:00:25.7]}
1-0

[Event "Early-Titled-Tuesday-Blitz-May-14-2024"]
[Site "Chess.com"]
[Date "2024.05.14"]
[Round "9"]
[White "jasrom"]
[Black "DvaHrasta"]
[Result "1-0"]
[WhiteElo "2370"]
[BlackElo "2509"]
[TimeControl "180+1"]
[EndTime "9:47:22 PDT"]
[Termination "jasrom won on time"]

1. e4 {[%clk 0:02:58.8]} 1... c6 {[%clk 0:02:59.7]} 2. Nc3 {[%clk 0:02:57.7]}
2... d5 {[%clk 0:02:59.1]} 3. Nf3 {[%clk 0:02:57.9]} 3... Nf6 {[%clk 0:02:58.9]}
4. e5 {[%clk 0:02:57]} 4... Ne4 {[%clk 0:02:58.1]} 5. Bd3 {[%clk 0:02:51.7]}
5... Nxc3 {[%clk 0:02:56.5]} 6. dxc3 {[%clk 0:02:51]} 6... Bg4 {[%clk
0:02:55.3]} 7. h3 {[%clk 0:02:50.4]} 7... Bxf3 {[%clk 0:02:55.3]} 8. Qxf3 {[%clk
0:02:49.8]} 8... e6 {[%clk 0:02:55.3]} 9. Qg3 {[%clk 0:02:49.1]} 9... Nd7 {[%clk
0:02:47]} 10. O-O {[%clk 0:02:47]} 10... a5 {[%clk 0:02:44.7]} 11. a4 {[%clk
0:02:45.7]} 11... Qc7 {[%clk 0:02:34.2]} 12. f4 {[%clk 0:02:41.1]} 12... O-O-O
{[%clk 0:02:32.4]} 13. Bd2 {[%clk 0:02:17.4]} 13... g6 {[%clk 0:02:29.1]} 14.
Kh1 {[%clk 0:02:11.6]} 14... h5 {[%clk 0:02:28.4]} 15. b4 {[%clk 0:02:11.3]}
15... h4 {[%clk 0:02:24.4]} 16. Qf2 {[%clk 0:02:10]} 16... axb4 {[%clk 0:02:01]}
17. cxb4 {[%clk 0:02:09.4]} 17... Qb6 {[%clk 0:01:59.5]} 18. Be3 {[%clk
0:01:59.2]} 18... c5 {[%clk 0:01:50.7]} 19. a5 {[%clk 0:01:56]} 19... Qc7 {[%clk
0:01:48.4]} 20. b5 {[%clk 0:01:48.2]} 20... c4 {[%clk 0:01:42.9]} 21. Be2 {[%clk
0:01:30.3]} 21... Bc5 {[%clk 0:01:41]} 22. Rfb1 {[%clk 0:01:25.4]} 22... Bxe3
{[%clk 0:01:39.5]} 23. Qxe3 {[%clk 0:01:25.3]} 23... Qc5 {[%clk 0:01:39.5]} 24.
Qc3 {[%clk 0:01:17.8]} 24... Rhg8 {[%clk 0:01:31]} 25. b6 {[%clk 0:01:01.4]}
25... Nb8 {[%clk 0:01:23.3]} 26. Bg4 {[%clk 0:00:51.6]} 26... Na6 {[%clk
0:01:16.5]} 27. Ra4 {[%clk 0:00:50.8]} 27... Kb8 {[%clk 0:01:14.6]} 28. Qe1
{[%clk 0:00:37.7]} 28... Qe7 {[%clk 0:01:11]} 29. c3 {[%clk 0:00:35]} 29... Rc8
{[%clk 0:01:10.1]} 30. Ra2 {[%clk 0:00:25.8]} 30... Rgd8 {[%clk 0:01:08.1]} 31.
Qe3 {[%clk 0:00:25]} 31... Qc5 {[%clk 0:01:05.1]} 32. Qe1 {[%clk 0:00:24]} 32...
d4 {[%clk 0:00:58.1]} 33. cxd4 {[%clk 0:00:21.5]} 33... Rxd4 {[%clk 0:00:57.6]}
34. Qxh4 {[%clk 0:00:21]} 34... Rxf4 {[%clk 0:00:52.9]} 35. Qg5 {[%clk
0:00:20.7]} 35... Rd4 {[%clk 0:00:45.7]} 36. Rf2 {[%clk 0:00:18.8]} 36... Rd7
{[%clk 0:00:41.1]} 37. Rbf1 {[%clk 0:00:13.7]} 37... Rf8 {[%clk 0:00:37.3]} 38.
Qh6 {[%clk 0:00:13.3]} 38... Re7 {[%clk 0:00:27.2]} 39. Qxf8+ {[%clk 0:00:12.4]}
1-0

[Event "Early-Titled-Tuesday-Blitz-May-14-2024"]
[Site "Chess.com"]
[Date "2024.05.14"]
[Round "9"]
[White "LangesNasenhaar"]
[Black "Vasily_IM"]
[Result "1/2-1/2"]
[WhiteElo "2477"]
[BlackElo "2600"]
[TimeControl "180+1"]
[EndTime "9:47:23 PDT"]
[Termination "Game drawn by agreement"]

1. d4 {[%clk 0:03:00.9]} 1... d5 {[%clk 0:02:59.6]} 2. Nf3 {[%clk 0:03:01.3]}
2... Nf6 {[%clk 0:02:59.4]} 3. g3 {[%clk 0:03:01.7]} 3... e6 {[%clk 0:02:58]} 4.
Bg2 {[%clk 0:03:01.8]} 4... a6 {[%clk 0:02:57.6]} 5. O-O {[%clk 0:03:02]} 5...
b5 {[%clk 0:02:57.8]} 6. a4 {[%clk 0:03:00.4]} 6... Bb7 {[%clk 0:02:57.2]} 7.
axb5 {[%clk 0:02:59.2]} 7... axb5 {[%clk 0:02:58.1]} 8. Rxa8 {[%clk 0:02:59.4]}
8... Bxa8 {[%clk 0:02:59]} 9. Qd3 {[%clk 0:02:53.7]} 9... b4 {[%clk 0:02:53.7]}
10. Bg5 {[%clk 0:02:51.7]} 10... Be7 {[%clk 0:02:52.2]} 11. Ne5 {[%clk 0:02:51]}
11... O-O {[%clk 0:02:50]} 12. Qb5 {[%clk 0:02:38.2]} 12... c6 {[%clk
0:02:42.7]} 13. Qa4 {[%clk 0:02:37.1]} 13... Bb7 {[%clk 0:02:34.7]} 14. Bxf6
{[%clk 0:02:35.7]} 14... gxf6 {[%clk 0:02:31.4]} 15. Nd3 {[%clk 0:02:35.5]}
15... Ba6 {[%clk 0:02:26.9]} 16. Nd2 {[%clk 0:02:29.9]} 16... Qb6 {[%clk
0:02:22.2]} 17. Nb3 {[%clk 0:02:25.1]} 17... Bb5 {[%clk 0:02:13.5]} 18. Qa5
{[%clk 0:02:21.6]} 18... Nd7 {[%clk 0:02:13]} 19. Ra1 {[%clk 0:02:12.1]} 19...
Rb8 {[%clk 0:02:02.9]} 20. e3 {[%clk 0:02:09.6]} 20... Bf8 {[%clk 0:02:00]} 21.
Bf1 {[%clk 0:02:05.7]} 21... e5 {[%clk 0:01:55.5]} 22. Bh3 {[%clk 0:01:49.2]}
22... Bxd3 {[%clk 0:01:36]} 23. cxd3 {[%clk 0:01:48.9]} 23... Qb7 {[%clk
0:01:34]} 24. Qa7 {[%clk 0:01:39.6]} 24... Nb6 {[%clk 0:01:27.9]} 25. Qxb7
{[%clk 0:01:29.1]} 25... Rxb7 {[%clk 0:01:27]} 26. Rc1 {[%clk 0:01:30]} 26...
Na4 {[%clk 0:01:19.7]} 27. Rc2 {[%clk 0:01:19.3]} 27... Rc7 {[%clk 0:01:14.6]}
28. Bg2 {[%clk 0:01:05.5]} 28... Bd6 {[%clk 0:01:14.1]} 29. Na5 {[%clk 0:00:52]}
29... c5 {[%clk 0:01:12.6]} 30. Bxd5 {[%clk 0:00:46.3]} 30... cxd4 {[%clk
0:01:06.7]} 31. Nc4 {[%clk 0:00:38.1]} 31... dxe3 {[%clk 0:00:59]} 32. fxe3
{[%clk 0:00:38.1]} 32... Nb6 {[%clk 0:00:53.9]} 33. Bxf7+ {[%clk 0:00:23.3]}
33... Kg7 {[%clk 0:00:50.4]} 34. Be6 {[%clk 0:00:23]} 34... Nxc4 {[%clk
0:00:44.2]} 35. Bxc4 {[%clk 0:00:21.6]} 35... Bc5 {[%clk 0:00:41.1]} 36. Kf2
{[%clk 0:00:20.3]} 36... f5 {[%clk 0:00:40.7]} 37. Kf3 {[%clk 0:00:19.4]} 37...
Kf6 {[%clk 0:00:40.2]} 38. Bb3 {[%clk 0:00:14.6]} 38... Bd6 {[%clk 0:00:35.9]}
39. Rxc7 {[%clk 0:00:12.3]} 39... Bxc7 {[%clk 0:00:35.9]} 40. e4 {[%clk
0:00:12.8]} 40... Bb6 {[%clk 0:00:34.1]} 41. h3 {[%clk 0:00:10.6]} 41... Bd4
{[%clk 0:00:32.4]} 42. Bg8 {[%clk 0:00:09.2]} 42... Kg7 {[%clk 0:00:28.5]} 43.
Be6 {[%clk 0:00:05.1]} 43... fxe4+ {[%clk 0:00:28]} 44. Kxe4 {[%clk 0:00:05.3]}
44... Bxb2 {[%clk 0:00:28.9]} 45. h4 {[%clk 0:00:04.4]} 45... Bd4 {[%clk
0:00:28]} 46. g4 {[%clk 0:00:04.8]} 46... h6 {[%clk 0:00:27.5]} 47. h5 {[%clk
0:00:05.1]} 47... Kf6 {[%clk 0:00:27.3]} 48. Bd5 {[%clk 0:00:04.1]} 48... Kg5
{[%clk 0:00:27.2]} 49. Kf3 {[%clk 0:00:04.4]} 49... Bc3 {[%clk 0:00:23.5]}
1/2-1/2

[Event "Early-Titled-Tuesday-Blitz-May-14-2024"]
[Site "Chess.com"]
[Date "2024.05.14"]
[Round "9"]
[White "Artem_Koval"]
[Black "Der_Balak_3Halak"]
[Result "1-0"]
[WhiteElo "2571"]
[BlackElo "2398"]
[TimeControl "180+1"]
[EndTime "9:47:23 PDT"]
[Termination "Artem_Koval won by checkmate"]

1. d4 {[%clk 0:03:00.9]} 1... d5 {[%clk 0:02:59.5]} 2. c4 {[%clk 0:03:00.6]}
2... c6 {[%clk 0:03:00]} 3. Nc3 {[%clk 0:02:59.7]} 3... Nf6 {[%clk 0:03:00.6]}
4. e3 {[%clk 0:02:58.9]} 4... e6 {[%clk 0:02:57.3]} 5. Nf3 {[%clk 0:02:58.3]}
5... Bd6 {[%clk 0:02:57.9]} 6. Bd3 {[%clk 0:02:57.3]} 6... O-O {[%clk
0:02:58.4]} 7. O-O {[%clk 0:02:57.4]} 7... dxc4 {[%clk 0:02:57.8]} 8. Bxc4
{[%clk 0:02:57.6]} 8... Nbd7 {[%clk 0:02:58.5]} 9. Qe2 {[%clk 0:02:43.4]} 9...
b5 {[%clk 0:02:57.8]} 10. Bd3 {[%clk 0:02:41.6]} 10... Bb7 {[%clk 0:02:57]} 11.
e4 {[%clk 0:02:36]} 11... e5 {[%clk 0:02:56.6]} 12. Bg5 {[%clk 0:02:32.4]} 12...
a6 {[%clk 0:02:49.5]} 13. Rfd1 {[%clk 0:02:26.6]} 13... Qe7 {[%clk 0:02:36.2]}
14. Bc2 {[%clk 0:02:12.3]} 14... h6 {[%clk 0:02:34.9]} 15. Bh4 {[%clk
0:02:11.6]} 15... Rfe8 {[%clk 0:02:11.5]} 16. dxe5 {[%clk 0:01:54.6]} 16... Nxe5
{[%clk 0:02:10.1]} 17. Nd4 {[%clk 0:01:54.9]} 17... Bc8 {[%clk 0:01:27.3]} 18.
h3 {[%clk 0:01:48.5]} 18... c5 {[%clk 0:01:22.5]} 19. Nf5 {[%clk 0:01:48.5]}
19... Bxf5 {[%clk 0:01:22.4]} 20. exf5 {[%clk 0:01:49.4]} 20... Rad8 {[%clk
0:01:18.7]} 21. Nd5 {[%clk 0:01:48.2]} 21... Qf8 {[%clk 0:00:55.8]} 22. Bxf6
{[%clk 0:01:28.4]} 22... gxf6 {[%clk 0:00:45.1]} 23. Nxf6+ {[%clk 0:01:29.3]}
23... Kg7 {[%clk 0:00:45.2]} 24. Nxe8+ {[%clk 0:01:24.8]} 24... Rxe8 {[%clk
0:00:44.3]} 25. f6+ {[%clk 0:01:24.7]} 25... Kxf6 {[%clk 0:00:41.7]} 26. Qh5
{[%clk 0:01:23.2]} 26... Bc7 {[%clk 0:00:36.1]} 27. Qf5+ {[%clk 0:01:19.2]}
27... Kg7 {[%clk 0:00:36.4]} 28. Re1 {[%clk 0:00:53.7]} 28... Ng6 {[%clk
0:00:28]} 29. Rxe8 {[%clk 0:00:53.1]} 29... Qxe8 {[%clk 0:00:28.9]} 30. Qxc5
{[%clk 0:00:53.1]} 30... Be5 {[%clk 0:00:19.3]} 31. Bxg6 {[%clk 0:00:49.4]}
31... fxg6 {[%clk 0:00:18.2]} 32. Qe3 {[%clk 0:00:47.2]} 32... Qb8 {[%clk
0:00:16.5]} 33. Re1 {[%clk 0:00:44.7]} 33... Kf6 {[%clk 0:00:15.8]} 34. Qxh6
{[%clk 0:00:40.1]} 34... Qd6 {[%clk 0:00:08.9]} 35. Qh8+ {[%clk 0:00:38.4]}
35... Kf5 {[%clk 0:00:09.5]} 36. Qxe5+ {[%clk 0:00:37.2]} 36... Qxe5 {[%clk
0:00:10.4]} 37. Rxe5+ {[%clk 0:00:37.9]} 37... Kxe5 {[%clk 0:00:11.3]} 38. h4
{[%clk 0:00:37.5]} 38... Kd4 {[%clk 0:00:09.2]} 39. g4 {[%clk 0:00:36.8]} 39...
Ke4 {[%clk 0:00:08.9]} 40. Kg2 {[%clk 0:00:36]} 40... Kf4 {[%clk 0:00:09.1]} 41.
h5 {[%clk 0:00:36.6]} 41... gxh5 {[%clk 0:00:08.5]} 42. gxh5 {[%clk 0:00:37.5]}
42... Kg5 {[%clk 0:00:09.2]} 43. Kf3 {[%clk 0:00:37.8]} 43... Kxh5 {[%clk
0:00:09.9]} 44. Ke4 {[%clk 0:00:38.3]} 44... Kg4 {[%clk 0:00:10.3]} 45. f4
{[%clk 0:00:38]} 45... a5 {[%clk 0:00:09.3]} 46. f5 {[%clk 0:00:38.4]} 46... Kg5
{[%clk 0:00:09.7]} 47. Ke5 {[%clk 0:00:38.9]} 47... b4 {[%clk 0:00:10.1]} 48. f6
{[%clk 0:00:39.5]} 48... Kg6 {[%clk 0:00:10.2]} 49. Ke6 {[%clk 0:00:40.4]} 49...
a4 {[%clk 0:00:11]} 50. f7 {[%clk 0:00:40.6]} 50... a3 {[%clk 0:00:11.5]} 51.
bxa3 {[%clk 0:00:40.5]} 51... b3 {[%clk 0:00:09.1]} 52. axb3 {[%clk 0:00:38]}
52... Kg7 {[%clk 0:00:08.8]} 53. Ke7 {[%clk 0:00:38.3]} 53... Kg6 {[%clk
0:00:09.5]} 54. f8=Q {[%clk 0:00:38.7]} 54... Kh7 {[%clk 0:00:10.4]} 55. Qf3
{[%clk 0:00:36.8]} 55... Kg6 {[%clk 0:00:11.3]} 56. Qf6+ {[%clk 0:00:36.6]}
56... Kh7 {[%clk 0:00:10.6]} 57. Qg5 {[%clk 0:00:36.7]} 57... Kh8 {[%clk
0:00:11.2]} 58. Kf7 {[%clk 0:00:37.6]} 58... Kh7 {[%clk 0:00:11]} 59. Qh5#
{[%clk 0:00:38.5]} 1-0